[Event "World Junior U20 Girls 2018"]
[Site "Gebze"]
[Date "2018.09.14"]
[Round "10"]
[White "Paramzina, Anastasya"]
[Black "Hojjatova, Aydan"]
[Result "1-0"]
[ECO "A06"]
[WhiteElo "2222"]
[BlackElo "2356"]
[Annotator "NA"]
[PlyCount "73"]
[EventDate "2018.09.05"]
[EventType "swiss"]
[EventCountry "TUR"]
[SourceTitle "playchess.com"]
[Source "ChessBase"]
[SourceQuality "1"]
[TimeControl "40/5400+30:1800+30"]

1. Nf3 {[%emt 0:05:30]} Nf6 {[%emt 0:00:30]} 2. e3 {[%emt 0:00:00]} e6 {[%emt 0:00:30]} 3. b3 {[%emt 0:00:00]} d5 {[%emt 0:01:30]} 4. Bb2 {[%emt 0:00:30]} Bd6 {[%emt 0:00:30]} 5. Be2 {[%emt 0:03:30]} O-O {[%emt 0:00:30]} 6. O-O {[%emt 0:00:30]} b6 {[%emt 0:01:30]} 7. c4 {[%emt 0:00:30]} Bb7 {[%emt 0:02:30]} 8. Nc3 {[%emt 0:02:30]} c5 {[%emt 0:01:30] LiveBook: 3 Games} 9. cxd5 {[%emt 0:00:30]} Nxd5 {[%emt 0:06:30]} 10. Rc1 {[%emt 0:03:30]} Nd7 {[%emt 0:05:30]} 11. Ne4 {[%emt 0:06:30]} Be7 {[%emt 0:00:30]} 12. d3 {[%emt 0:00:30]} N7f6 {[%emt 0:04:30]} 13. a3 {[%emt 0:00:30]} Rc8 $11 {[%emt 0:03:30]} 14. Rc2 {[%emt 0:06:30]} Qd7 {[%emt 0:09:30]} 15. Ne5 {[%emt 0:07:30]} Qb5 {[%emt 0:09:30]} 16. Rd2 {[%emt 0:07:30]} Rfd8 {[%emt 0:02:30]} 17. a4 {[%emt 0:05:30]} Qe8 {[%emt 0:05:30]} 18. Ng5 {[%emt 0:00:30]} Rc7 {[%emt 0:09:30]} 19. Ngxf7 {[%emt 0:13:30]} Rdc8 {[%emt 0:00:00]} 20. Ng5 {[%emt 0:01:30]} Bf8 {[%emt 0:01:00]} 21. Qa1 {[%emt 0:01:30]} h6 {[%emt 0:00:30]} 22. Ngf3 {[%emt 0:02:30]} a6 {[%emt 0:03:30]} 23. Nh4 {[%emt 0:01:30]} g5 {[%emt 0:02:30]} 24. Nhg6 {[%emt 0:04:30]} Bg7 {[%emt 0:00:30]} 25. e4 {[%emt 0:00:30]} Nb4 {[%emt 0:08:30]} 26. f4 {[%emt 0:00:30]} g4 {[%emt 0:01:49]} 27. Nh4 {[%emt 0:02:30]} h5 {[%emt 0:00:19]} 28. f5 {[%emt 0:03:30]} Qd8 {[%emt 0:02:41]} 29. Bc3 {[%emt 0:04:49]} Bh6 {[%emt 0:01:24]} 30. fxe6 {[%emt 0:06:38]} Be3+ {[%emt 0:03:16]} 31. Kh1 {[%emt 0:00:09]} Nxe4 {[%emt 0:00:00]} 32. dxe4 {[%emt 0:02:10]} Bxd2 {[%emt 0:04:17]} 33. Bc4 {[%emt 0:02:00]} Qxh4 {[%emt 0:05:41]} 34. e7+ {[%emt 0:00:12]} Nd5 {[%emt 0:00:50]} 35. exd5 {[%emt 0:00:19]} b5 {[%emt 0:00:09]} 36. Bxd2 {[%emt 0:00:49]} bxc4 {[%emt 0:00:32]} 37. Ng6 {[%emt 0:00:28]} 1-0

[Event "World Junior U20 Girls 2018"]
[Site "Gebze"]
[Date "2018.09.14"]
[Round "10"]
[White "Mahalakshmi, M."]
[Black "Sankova, Stella"]
[Result "1/2-1/2"]
[ECO "D02"]
[WhiteElo "2213"]
[BlackElo "2081"]
[Annotator "NA"]
[PlyCount "60"]
[EventDate "2018.09.05"]
[EventType "swiss"]
[EventCountry "TUR"]
[SourceTitle "playchess.com"]
[Source "ChessBase"]
[SourceQuality "1"]
[TimeControl "40/5400+30:1800+30"]

1. Nf3 {[%emt 0:00:30]} d5 {[%emt 0:00:30]} 2. d4 {[%emt 0:00:00]} Nf6 {[%emt 0:00:30]} 3. Bf4 {[%emt 0:00:00]} c5 {[%emt 0:00:00]} 4. e3 {[%emt 0:00:30]} Nc6 {[%emt 0:01:00]} 5. c3 {[%emt 0:00:30]} Qb6 {[%emt 0:00:30]} 6. Qc1 {[%emt 0:01:30]} Bf5 {[%emt 0:01:30]} 7. Be2 {[%emt 0:02:30]} h6 {[%emt 0:02:30] LiveBook: 3 Partien D02: 1 d4 d5 2 Nf3 sidelines, including 2...Nf6 3 g3 and 2...Nf6 3 Bf4} (7... e6 8. O-O Be7 9. Nbd2 Rc8 10. dxc5 Bxc5 11. Nh4 Be4 12. Nhf3 Nh5 13. Bg3 Nxg3 14. hxg3 Bg6 15. Nh4 {½-½ (59) Nazaryev,S (2269)-Gonda,L (2534) Pardubice 2018}) 8. h3 {[%emt 0:02:30]} e6 {[%emt 0:01:30]} 9. Nbd2 {[%emt 0:01:30]} cxd4 {[%emt 0:01:30]} 10. exd4 {[%emt 0:00:30]} Be7 {[%emt 0:00:30]} 11. Ne5 $146 {[%emt 0:04:30]} ({Predecessor:} 11. O-O O-O 12. Re1 Rfc8 13. Nf1 {½-½ (57) Fabeyo,F (2031)-Ofowino,T Lagos 2015}) 11... Nxe5 {[%emt 0:06:30]} 12. Bxe5 {[%emt 0:00:30]} O-O {[%emt 0:00:30]} 13. O-O {[%emt 0:02:30]} Rfc8 {[%emt 0:04:30]} 14. Re1 {[%emt 0:03:30]} Ne4 {[%emt 0:11:30]} 15. Nxe4 {[%emt 0:05:30]} Bxe4 {[%emt 0:00:30]} 16. Bg3 {[%emt 0:00:30]} a6 {[%emt 0:05:30]} 17. Qd2 {[%emt 0:02:30]} Qc6 {[%emt 0:01:30]} 18. Bd3 {[%emt 0:05:30]} Bxd3 {[%emt 0:11:30]} 19. Qxd3 {[%emt 0:00:30]} b5 {[%emt 0:00:30]} 20. Bf4 {[%emt 0:00:30]} b4 {[%emt 0:12:30]} 21. Bd2 {[%emt 0:11:30]} bxc3 {[%emt 0:07:30]} 22. bxc3 {[%emt 0:00:00]} Rab8 {[%emt 0:00:30]} 23. Qg3 {[%emt 0:08:00]} Bd6 {[%emt 0:00:30]} 24. Qg4 $17 {[%emt 0:01:30]} Kh8 {[%emt 0:01:30]} 25. Qh5 {[%emt 0:04:30]} Kg8 {[%emt 0:01:30]} 26. Qg4 {[%emt 0:03:30]} Kh8 {[%emt 0:01:30]} 27. Qh5 {[%emt 0:03:30]} Kg8 {[%emt 0:00:00]} 28. Qg4 {[%emt 0:00:30]} Kh8 {[%emt 0:00:00]} 29. Qh5 {[%emt 0:00:30]} Kg8 {[%emt 0:00:30]} 30. Qg4 {[%emt 0:00:00]} Kh8 {[%emt 0:00:00]} 1/2-1/2

[Event "World Junior U20 Girls 2018"]
[Site "Gebze"]
[Date "2018.09.14"]
[Round "10"]
[White "Beydullayeva, Govhar"]
[Black "Gorti, Akshita"]
[Result "1/2-1/2"]
[ECO "E09"]
[WhiteElo "2202"]
[BlackElo "2315"]
[Annotator "NA"]
[PlyCount "70"]
[EventDate "2018.09.05"]
[EventType "swiss"]
[EventCountry "TUR"]
[SourceTitle "playchess.com"]
[Source "ChessBase"]
[SourceQuality "1"]
[TimeControl "40/5400+30:1800+30"]

1. Nf3 {[%emt 0:00:30]} d5 {[%emt 0:00:30]} 2. g3 {[%emt 0:00:30]} Nf6 {[%emt 0:00:30]} 3. Bg2 {[%emt 0:00:00]} e6 {[%emt 0:00:30]} 4. O-O {[%emt 0:00:00]} Be7 {[%emt 0:00:30]} 5. c4 {[%emt 0:00:30]} O-O {[%emt 0:01:30]} 6. d4 {[%emt 0:00:30]} Nbd7 {[%emt 0:00:30]} 7. Qc2 {[%emt 0:01:30]} c6 {[%emt 0:00:30]} 8. Nbd2 {[%emt 0:00:30]} b6 {[%emt 0:00:30]} 9. e4 {[%emt 0:00:30]} dxc4 {[%emt 0:00:30]} 10. Nxc4 {[%emt 0:04:30]} Bb7 $1 {[%emt 0:00:30]} 11. Rd1 {[%emt 0:15:30] LiveBook: 17 Games} c5 {[%emt 0:00:30]} 12. Ng5 {[%emt 0:04:30]} h6 {[%emt 0:02:30]} 13. e5 {[%emt 0:05:30]} Bxg2 {[%emt 0:00:30]} 14. exf6 {[%emt 0:01:30]} Nxf6 {[%emt 0:00:30]} 15. Kxg2 {[%emt 0:02:30]} hxg5 {[%emt 0:00:30]} 16. dxc5 {[%emt 0:01:30]} Nd5 {[%emt 0:01:30]} 17. cxb6 {[%emt 0:02:30]} axb6 {[%emt 0:00:30]} 18. Qe4 {[%emt 0:04:30]} Bf6 {[%emt 0:14:30]} 19. Ne5 {[%emt 0:07:30]} Rc8 {[%emt 0:09:30]} 20. Be3 {[%emt 0:13:30]} Qc7 {[%emt 0:11:30]} 21. Bd4 {[%emt 0:00:30]} Qc2 {[%emt 0:01:30]} 22. Qe1 {[%emt 0:08:30]} Rfd8 $15 {[%emt 0:03:30]} 23. Rd2 {[%emt 0:03:30]} Qa4 {[%emt 0:04:30]} 24. b3 {[%emt 0:01:30]} Qa8 {[%emt 0:01:30]} 25. Kg1 {[%emt 0:01:31]} Nb4 {[%emt 0:18:30]} 26. Qe2 {[%emt 0:01:37]} Rd6 {[%emt 0:12:49]} 27. Rad1 {[%emt 0:05:38]} Rcd8 {[%emt 0:01:08]} 28. a3 {[%emt 0:04:16]} Nc6 {[%emt 0:03:08]} 29. Nxc6 {[%emt 0:01:57]} Qxc6 {[%emt 0:00:06]} 30. Bb2 {[%emt 0:03:04]} Bxb2 {[%emt 0:03:15]} 31. Rxd6 {[%emt 0:00:30]} Rxd6 {[%emt 0:00:30]} 32. Rxd6 {[%emt 0:00:00]} Qxd6 {[%emt 0:00:11]} 33. Qxb2 {[%emt 0:00:10]} Qd1+ {[%emt 0:00:30]} 34. Kg2 {[%emt 0:00:00]} Qd5+ {[%emt 0:00:00]} 35. Kg1 {[%emt 0:00:05]} Qd1+ {[%emt 0:00:00]} 1/2-1/2

[Event "World Junior U20 Girls 2018"]
[Site "Gebze"]
[Date "2018.09.14"]
[Round "10"]
[White "Chu, Ruotong"]
[Black "Malatsilava, Volha"]
[Result "1-0"]
[ECO "E92"]
[WhiteElo "2199"]
[BlackElo "2040"]
[Annotator "NA"]
[PlyCount "65"]
[EventDate "2018.09.05"]
[EventType "swiss"]
[EventCountry "TUR"]
[SourceTitle "playchess.com"]
[Source "ChessBase"]
[SourceQuality "1"]
[TimeControl "40/5400+30:1800+30"]

1. d4 {[%emt 0:01:30]} Nf6 {[%emt 0:00:30]} 2. c4 {[%emt 0:00:30]} d6 {[%emt 0:00:00]} 3. Nc3 {[%emt 0:00:30]} g6 {[%emt 0:00:00]} 4. e4 {[%emt 0:00:30]} Bg7 {[%emt 0:00:30]} 5. Nf3 {[%emt 0:00:00]} O-O {[%emt 0:00:30]} 6. Be2 {[%emt 0:03:00]} e5 {[%emt 0:00:00]} 7. dxe5 {[%emt 0:03:30]} dxe5 {[%emt 0:00:00]} 8. Qxd8 {[%emt 0:00:30]} Rxd8 {[%emt 0:00:30]} 9. Bg5 {[%emt 0:00:00]} Re8 {[%emt 0:00:30]} 10. O-O-O {[%emt 0:00:00]} h6 {[%emt 0:20:30]} 11. Bh4 {[%emt 0:11:30]} g5 {[%emt 0:01:30]} (11... Nh5 $11) 12. Bg3 {[%emt 0:00:30]} Nfd7 $16 {[%emt 0:01:30]} 13. h4 {[%emt 0:09:30]} g4 {[%emt 0:00:30]} 14. Nh2 {[%emt 0:03:30]} Nf6 {[%emt 0:02:30]} 15. Nd5 {[%emt 0:02:30]} Nxd5 {[%emt 0:00:30]} 16. cxd5 {[%emt 0:02:30]} h5 {[%emt 0:01:30]} 17. f3 {[%emt 0:03:30]} f5 {[%emt 0:10:30]} 18. exf5 {[%emt 0:01:30]} gxf3 {[%emt 0:00:30]} 19. Nxf3 {[%emt 0:08:30]} Bxf5 {[%emt 0:00:30]} 20. Ng5 {[%emt 0:05:30]} Na6 {[%emt 0:20:30]} 21. Bxh5 {[%emt 0:06:30]} Rf8 {[%emt 0:01:30]} 22. Be2 {[%emt 0:05:30]} Nc5 {[%emt 0:04:30]} 23. Bf2 {[%emt 0:04:30]} Ne4 {[%emt 0:12:30]} 24. Nxe4 {[%emt 0:00:30]} Bxe4 {[%emt 0:00:00]} 25. Be3 {[%emt 0:00:00]} Bxg2 {[%emt 0:01:44]} 26. Rhg1 {[%emt 0:00:00]} Be4 {[%emt 0:01:50]} 27. Bh6 {[%emt 0:01:30]} Rf7 {[%emt 0:00:09]} 28. Rg4 {[%emt 0:01:30]} Rd8 {[%emt 0:18:00]} 29. Bxg7 {[%emt 0:00:30]} Bf5 {[%emt 0:00:34]} 30. Rg5 {[%emt 0:00:30]} Kh7 {[%emt 0:00:22]} 31. Rdg1 {[%emt 0:01:30]} Rxd5 {[%emt 0:00:18]} 32. Rh5+ {[%emt 0:00:30]} Kg8 {[%emt 0:00:30]} 33. Rh8# {[%emt 0:00:00]} 1-0

[Event "World Junior U20 Girls 2018"]
[Site "Gebze"]
[Date "2018.09.14"]
[Round "10"]
[White "Schneider, Jana"]
[Black "Haussernot, Cecile"]
[Result "1/2-1/2"]
[ECO "B90"]
[WhiteElo "2190"]
[BlackElo "2237"]
[Annotator "NA"]
[PlyCount "128"]
[EventDate "2018.09.05"]
[EventType "swiss"]
[EventCountry "TUR"]
[SourceTitle "playchess.com"]
[Source "ChessBase"]
[SourceQuality "1"]
[TimeControl "40/5400+30:1800+30"]

1. e4 {[%emt 0:00:30]} c5 {[%emt 0:02:30]} 2. Nf3 {[%emt 0:00:30]} d6 {[%emt 0:00:30]} 3. d4 {[%emt 0:00:30]} cxd4 {[%emt 0:00:00]} 4. Nxd4 {[%emt 0:00:00]} Nf6 {[%emt 0:00:00]} 5. Nc3 {[%emt 0:00:00]} a6 {[%emt 0:00:30]} 6. Be3 {[%emt 0:00:00]} e5 {[%emt 0:00:30]} 7. Nf3 {[%emt 0:00:00]} Be7 {[%emt 0:00:00]} 8. Bc4 {[%emt 0:00:00]} O-O {[%emt 0:00:00]} 9. O-O {[%emt 0:00:00]} Be6 {[%emt 0:03:30]} 10. Bb3 {[%emt 0:00:30]} b5 {[%emt 0:04:30] B90: Sizilianisch (Najdorf-Variante, Abweichungen)} (10... Qc7 11. Nh4 g6 12. Nf3 Re8 13. Ng5 Bc4 14. Re1 Nbd7 15. a4 Qc6 16. Bxc4 Qxc4 17. a5 Qc6 18. Qd3 Rac8 {½-½ (48) Sjugirov,S (2652)-Wojtaszek,R (2738) Batumi 2018}) 11. Qe2 {[%emt 0:11:30]} Ng4 $146 {[%emt 0:08:30]} ({Vorgänger:} 11... h6 12. Nh4 Nbd7 13. Nf5 Rc8 14. Rfd1 Nc5 15. Nd5 Nxd5 16. Bxd5 Bxf5 17. exf5 Bg5 18. Bxc5 Rxc5 {1-0 (46) Andriasian,Z (2611)-Gabuzyan,H (2614) Yerevan 2016}) 12. Bd5 {[%emt 0:09:30]} Nxe3 {[%emt 0:05:30]} 13. Qxe3 {[%emt 0:00:30]} Bxd5 {[%emt 0:02:30]} 14. Nxd5 {[%emt 0:00:00]} Nc6 {[%emt 0:00:30]} 15. Rfd1 {[%emt 0:03:00]} Re8 {[%emt 0:02:30]} 16. a4 {[%emt 0:04:30]} b4 {[%emt 0:01:30]} 17. Qd2 {[%emt 0:04:30]} Bf8 {[%emt 0:00:30]} 18. Nxb4 {[%emt 0:03:30]} Nxb4 {[%emt 0:00:30]} 19. Qxb4 {[%emt 0:00:00]} Rb8 {[%emt 0:00:00]} 20. Qc3 {[%emt 0:20:00]} Qb6 {[%emt 0:00:00]} 21. b3 {[%emt 0:01:30]} Rec8 {[%emt 0:00:30]} 22. Qd3 {[%emt 0:00:30]} Qb4 {[%emt 0:01:30]} 23. Ne1 {[%emt 0:11:30]} Rc3 {[%emt 0:02:30]} 24. Qe2 {[%emt 0:00:30]} Be7 {[%emt 0:04:30]} 25. Rd3 {[%emt 0:02:30]} Bd8 {[%emt 0:01:30]} 26. Rxc3 {[%emt 0:01:30]} Qxc3 {[%emt 0:00:30]} 27. Rd1 {[%emt 0:00:30]} Qc6 {[%emt 0:00:00]} 28. Qd3 {[%emt 0:04:30]} Ba5 {[%emt 0:00:00]} 29. Kf1 {[%emt 0:03:40]} Rd8 {[%emt 0:04:30]} 30. Nf3 {[%emt 0:02:39]} Rc8 {[%emt 0:04:30]} 31. c4 {[%emt 0:01:34]} Bb4 {[%emt 0:01:30]} 32. Nh4 {[%emt 0:05:52]} g6 {[%emt 0:03:30]} 33. Qf3 {[%emt 0:00:21]} Rb8 {[%emt 0:00:30]} 34. Rd3 {[%emt 0:00:55]} Ba5 {[%emt 0:02:30]} 35. Qg4 {[%emt 0:03:12]} Rxb3 {[%emt 0:01:30]} 36. Rd1 {[%emt 0:05:41]} Rb2 {[%emt 0:06:30]} 37. Nf5 $19 {[%emt 0:01:16]} (37. Kg1 {was the only chance.} Qxc4 38. h3) 37... Qxc4+ {[%emt 0:00:30]} 38. Kg1 {[%emt 0:00:00]} h5 $2 {[%emt 0:00:30]} (38... Qc2 $19 {is more deadly.} 39. Ne7+ Kg7) 39. Nxd6 {[%emt 0:00:40]} Qxa4 {[%emt 0:02:30]} 40. Qc8+ {[%emt 0:00:00]} Kh7 {[%emt 0:00:00]} 41. Rf1 {[%emt 0:13:43]} Qd4 {[%emt 0:04:00]} 42. Qxa6 {[%emt 0:08:26]} Bb6 {[%emt 0:05:30]} 43. Qa1 {[%emt 0:01:59]} Qb4 {[%emt 0:05:30]} 44. Nxf7 {[%emt 0:02:57]} Qd2 {[%emt 0:03:30]} 45. Kh1 {[%emt 0:03:25]} Bxf2 {[%emt 0:02:30]} 46. Qc1 {[%emt 0:01:42]} Qxc1 {[%emt 0:05:30]} 47. Rxc1 {[%emt 0:00:30]} Be3 {[%emt 0:00:30]} 48. Rf1 {[%emt 0:01:08]} Rb5 {[%emt 0:00:30]} 49. g3 {[%emt 0:01:31]} Kg7 {[%emt 0:00:30]} 50. Nd6 {[%emt 0:00:51]} Rc5 {[%emt 0:00:30]} 51. Rf7+ {[%emt 0:00:25]} Kh6 {[%emt 0:00:30]} 52. Re7 {[%emt 0:00:37]} Rc1+ {[%emt 0:01:30]} 53. Kg2 {[%emt 0:00:01]} Bd4 {[%emt 0:00:30]} 54. Re6 {[%emt 0:01:02]} Rc2+ {[%emt 0:00:30]} 55. Kf1 {[%emt 0:00:20]} Kg7 {[%emt 0:02:30]} 56. h4 {[%emt 0:00:42]} Rf2+ {[%emt 0:00:30]} 57. Ke1 {[%emt 0:00:30]} Rg2 {[%emt 0:00:30]} 58. Re7+ {[%emt 0:00:50]} Kf6 {[%emt 0:00:00]} 59. Rc7 {[%emt 0:00:18]} g5 {[%emt 0:01:00]} 60. Ne8+ {[%emt 0:00:51]} Ke6 {[%emt 0:00:30]} 61. Ng7+ {[%emt 0:00:30]} Kd6 {[%emt 0:00:00]} 62. Ne8+ {[%emt 0:00:00]} Ke6 {[%emt 0:00:00]} 63. Ng7+ {[%emt 0:00:59]} Kd6 {[%emt 0:00:30]} 64. Ne8+ {[%emt 0:00:30]} Ke6 {[%emt 0:00:00]} 1/2-1/2

[Event "World Junior U20 Girls 2018"]
[Site "Gebze"]
[Date "2018.09.14"]
[Round "10"]
[White "Pychova, Nela"]
[Black "Li, Yunshan"]
[Result "0-1"]
[ECO "A16"]
[WhiteElo "2173"]
[BlackElo "2060"]
[Annotator "NA"]
[PlyCount "98"]
[EventDate "2018.09.05"]
[EventType "swiss"]
[EventCountry "TUR"]
[SourceTitle "playchess.com"]
[Source "ChessBase"]
[SourceQuality "1"]
[TimeControl "40/5400+30:1800+30"]

1. Nf3 {[%emt 0:00:30]} Nf6 {[%emt 0:00:30]} 2. c4 {[%emt 0:00:00]} g6 {[%emt 0:00:00]} 3. Nc3 {[%emt 0:00:00]} d5 {[%emt 0:00:00]} 4. cxd5 {[%emt 0:00:30]} Nxd5 {[%emt 0:00:30]} 5. Qa4+ {[%emt 0:00:00]} Nc6 {[%emt 0:00:00]} 6. Ne5 {[%emt 0:02:00]} Qd6 {[%emt 0:01:00]} 7. Nxc6 {[%emt 0:01:30]} Qxc6 {[%emt 0:00:30]} 8. Qxc6+ {[%emt 0:04:30]} bxc6 {[%emt 0:00:00]} 9. b3 {[%emt 0:00:00]} Bg7 {[%emt 0:06:00]} 10. Bb2 {[%emt 0:00:00]} Nxc3 {[%emt 0:02:30]} 11. Bxc3 {[%emt 0:00:30] LiveBook: 21 Games} Bxc3 {[%emt 0:00:30]} 12. dxc3 {[%emt 0:00:30]} Be6 {[%emt 0:02:30]} 13. e4 {[%emt 0:04:30]} a5 {[%emt 0:01:30]} 14. Bd3 {[%emt 0:02:30]} O-O {[%emt 0:01:30]} 15. Ke2 {[%emt 0:05:30]} c5 $11 {[%emt 0:06:30]} 16. f4 {[%emt 0:06:30]} f6 {[%emt 0:01:30]} 17. Ke3 {[%emt 0:34:30]} Rfb8 {[%emt 0:02:30]} 18. c4 {[%emt 0:07:30]} Rd8 {[%emt 0:24:30]} 19. Bc2 {[%emt 0:04:30]} Rd4 {[%emt 0:02:30]} 20. Rad1 {[%emt 0:00:30]} Rad8 {[%emt 0:00:00]} 21. Rxd4 {[%emt 0:06:28]} cxd4+ {[%emt 0:00:00]} 22. Kd2 {[%emt 0:00:57]} c5 {[%emt 0:01:30]} 23. Bd3 {[%emt 0:00:27]} Bd7 {[%emt 0:01:30]} 24. f5 {[%emt 0:03:46]} Kf7 {[%emt 0:03:30]} 25. fxg6+ {[%emt 0:07:05]} hxg6 {[%emt 0:00:30]} 26. e5 {[%emt 0:00:03]} Bf5 {[%emt 0:09:30]} 27. Rf1 {[%emt 0:05:57]} Bxd3 {[%emt 0:01:30]} 28. Kxd3 {[%emt 0:00:05]} f5 {[%emt 0:01:30]} 29. Re1 {[%emt 0:02:20]} Ke6 {[%emt 0:00:30]} 30. Re2 {[%emt 0:01:12]} Rf8 {[%emt 0:02:30]} 31. a3 {[%emt 0:00:37]} Rb8 {[%emt 0:00:30]} 32. Kc2 {[%emt 0:00:24]} d3+ {[%emt 0:09:26]} 33. Kxd3 {[%emt 0:00:30]} Rxb3+ {[%emt 0:00:30]} 34. Kc2 {[%emt 0:00:30]} Rxa3 {[%emt 0:00:00]} 35. Kb2 {[%emt 0:00:00]} Ra4 {[%emt 0:03:35]} 36. Kc3 {[%emt 0:00:07]} Rb4 {[%emt 0:00:30]} 37. Rd2 {[%emt 0:00:00]} a4 {[%emt 0:00:33]} 38. Rd5 {[%emt 0:01:18]} a3 {[%emt 0:00:36]} 39. Rxc5 {[%emt 0:00:56]} Ra4 {[%emt 0:00:05]} 40. Kb3 {[%emt 0:00:00]} a2 {[%emt 0:00:37]} 41. Kxa4 {[%emt 0:01:48]} a1=Q+ {[%emt 0:00:08]} 42. Kb3 {[%emt 0:00:30]} Qg1 {[%emt 0:01:30]} 43. Rc6+ {[%emt 0:00:30]} Kf7 {[%emt 0:00:00]} 44. c5 {[%emt 0:01:30]} Qxg2 {[%emt 0:00:00]} 45. Rb6 {[%emt 0:00:30]} Qd5+ {[%emt 0:01:30]} 46. Kb4 {[%emt 0:00:30]} Qd4+ {[%emt 0:00:00]} 47. Kb5 {[%emt 0:00:00]} Qxe5 {[%emt 0:00:00]} 48. Kc4 {[%emt 0:00:00]} f4 {[%emt 0:00:30]} 49. c6 {[%emt 0:02:30]} f3 {[%emt 0:00:30]} 0-1

[Event "World Junior U20 Girls 2018"]
[Site "Gebze"]
[Date "2018.09.14"]
[Round "10"]
[White "Varshini, V."]
[Black "Khomeriki, Nino"]
[Result "1/2-1/2"]
[ECO "C47"]
[WhiteElo "2173"]
[BlackElo "2313"]
[Annotator "NA"]
[PlyCount "93"]
[EventDate "2018.09.05"]
[EventType "swiss"]
[EventCountry "TUR"]
[SourceTitle "playchess.com"]
[Source "ChessBase"]
[SourceQuality "1"]
[TimeControl "40/5400+30:1800+30"]

1. e4 {[%emt 0:00:30]} e5 {[%emt 0:00:30]} 2. Nf3 {[%emt 0:00:30]} Nc6 {[%emt 0:00:00]} 3. Nc3 {[%emt 0:00:00]} Nf6 {[%emt 0:01:00]} 4. Be2 {[%emt 0:00:00]} d5 {[%emt 0:07:30]} 5. exd5 {[%emt 0:00:30]} Nxd5 {[%emt 0:00:30]} 6. O-O {[%emt 0:00:00]} Nxc3 {[%emt 0:03:30]} 7. bxc3 {[%emt 0:00:00]} e4 {[%emt 0:01:30] C47: Scotch Four Knights and Four Knights with 4 g3} 8. Ne1 {[%emt 0:00:30]} f5 {[%emt 0:00:00]} (8... Bd6 9. f3 f5 10. fxe4 fxe4 11. Rb1 Qe7 12. d4 exd3 13. cxd3 Bd7 14. Rxb7 O-O-O 15. Rb2 {1-0 (29) Van Foreest,J (2629)-Giri,A (2752) Amstelveen 2017}) 9. d4 $146 {[%emt 0:09:30]} ({Predecessor:} 9. f3 Bc5+ 10. Kh1 O-O 11. d4 exd3 12. cxd3 f4 13. d4 Bd6 14. Nd3 Qh4 15. Qe1 {½-½ (64) Shaw,J (2439)-Collins,S (2456) England 2015}) 9... Bd6 {[%emt 0:04:00]} 10. f3 {[%emt 0:11:30]} O-O {[%emt 0:06:30]} ({Reject} 10... Qh4 11. g3 $14) 11. Rb1 {[%emt 0:08:30]} Be6 {[%emt 0:04:30]} 12. Rxb7 {[%emt 0:26:30]} Na5 {[%emt 0:08:30]} 13. Rb1 {[%emt 0:07:30]} c6 {[%emt 0:00:30]} ({But not} 13... Bxa2 $2 14. Ra1 $18) 14. c4 {[%emt 0:12:51]} Nxc4 {[%emt 0:01:30]} 15. fxe4 {[%emt 0:01:58]} fxe4 {[%emt 0:02:30]} 16. Rxf8+ {[%emt 0:00:57]} Qxf8 {[%emt 0:01:30]} 17. g3 {[%emt 0:03:05]} Nb6 {[%emt 0:14:30]} 18. Ng2 {[%emt 0:02:00]} Bxa2 {[%emt 0:01:30]} 19. Ra1 {[%emt 0:00:19]} Qf7 {[%emt 0:03:30]} 20. Ne3 {[%emt 0:03:36]} Be7 $11 {[%emt 0:04:30]} ({Better is} 20... Be6 $17 21. Qf1 Qg6) 21. Ng4 {[%emt 0:02:50]} Rf8 {[%emt 0:09:30]} 22. Be3 {[%emt 0:00:41]} Nd5 {[%emt 0:00:30]} 23. Qf1 {[%emt 0:02:59]} Nxe3 {[%emt 0:08:19]} 24. Nxe3 {[%emt 0:02:46]} Bg5 {[%emt 0:02:46]} 25. Qxf7+ {[%emt 0:00:30]} Bxf7 {[%emt 0:00:04]} 26. Nc4 {[%emt 0:00:46]} Bd5 {[%emt 0:08:35]} 27. h4 {[%emt 0:00:53]} Bf6 {[%emt 0:00:52]} 28. c3 {[%emt 0:00:16]} Rb8 {[%emt 0:00:38]} 29. Rxa7 {[%emt 0:00:55]} Kf8 {[%emt 0:01:42]} 30. Ne3 {[%emt 0:01:47]} Rb3 {[%emt 0:00:01]} 31. Nxd5 {[%emt 0:00:40]} cxd5 {[%emt 0:00:03]} 32. Rd7 {[%emt 0:00:37]} Rxc3 {[%emt 0:00:16]} 33. Rxd5 {[%emt 0:00:00]} Rxg3+ {[%emt 0:00:36]} 34. Kf2 {[%emt 0:00:24]} Ra3 {[%emt 0:02:55]} 35. h5 {[%emt 0:00:23]} Ke7 {[%emt 0:01:39]} 36. Bg4 {[%emt 0:00:41]} Bh4+ {[%emt 0:01:02]} 37. Ke2 {[%emt 0:00:08]} Bg3 {[%emt 0:00:29]} 38. Bf5 {[%emt 0:00:24]} Bf4 {[%emt 0:00:30]} 39. Bxe4 {[%emt 0:00:36]} Ke6 {[%emt 0:00:47]} 40. Rd8 {[%emt 0:00:30]} Bg5 {[%emt 0:00:00]} 41. Re8+ {[%emt 0:07:28]} Kd7 {[%emt 0:01:16]} 42. Re5 {[%emt 0:00:30]} h6 {[%emt 0:00:00]} 43. Bg6 {[%emt 0:01:30]} Kd6 {[%emt 0:00:00]} 44. Rf5 {[%emt 0:00:30]} Bf6 {[%emt 0:00:30]} 45. d5 {[%emt 0:00:30]} Be5 {[%emt 0:00:30]} 46. Bf7 {[%emt 0:00:30]} Rh3 {[%emt 0:00:30]} 47. Rf3 {[%emt 0:01:30]} 1/2-1/2